bitfinex/quotes_BTCUSD_20241001
["timestamp","ask_amount","ask_price","bid_price","bid_amount"]
[1727765170466,0.000824,64056.0,64055.0,0.156115]
[1727765170705,0.000824,64056.0,64055.0,0.38983719]
[1727765170923,0.000824,64056.0,64055.0,0.42469953]
[1727765171169,0.000824,64056.0,64055.0,0.44257589]
[1727765171888,0.000824,64056.0,64055.0,0.44270523]
[1727765172103,0.000824,64056.0,64055.0,0.42700716]
[1727765172343,0.000824,64056.0,64055.0,0.44271156]
[1727765172567,0.000824,64056.0,64055.0,0.46118936]
[1727765173099,0.000824,64056.0,64055.0,0.47689366]
[1727765173332,0.000824,64056.0,64055.0,0.54936364]
[1727765173807,0.000824,64056.0,64055.0,0.55136364]
[1727765174265,0.23677793,64066.0,64055.0,0.55136364]
[1727765174266,0.23677793,64066.0,64057.0,0.002]
[1727765174493,0.23677793,64066.0,64065.0,0.27411512]
[1727765174974,0.095,64069.0,64068.0,0.156084]
[1727765175219,0.095,64069.0,64068.0,0.27410812]
[1727765175459,0.095,64069.0,64068.0,0.28210525]
[1727765178296,0.095,64069.0,64068.0,0.28749793]
[1727765178520,0.095,64069.0,64068.0,0.29249793]
[1727765178974,0.095,64069.0,64068.0,0.29749793]
[1727765182722,0.095,64069.0,64068.0,0.17947381]
[1727765182974,0.1752,64069.0,64068.0,0.17947381]
[1727765183915,0.1752,64069.0,64068.0,0.16947381]
[1727765186930,0.176023,64069.0,64068.0,0.16947381]
[1727765200534,0.22279827,64069.0,64068.0,0.16947381]
[1727765200984,0.24726558,64069.0,64068.0,0.16947381]
[1727765201444,0.22279827,64069.0,64068.0,0.16947381]
[1727765202643,0.176023,64069.0,64068.0,0.16947381]
[1727765203844,0.22283841,64069.0,64068.0,0.16947381]
[1727765204072,0.176023,64069.0,64068.0,0.16947381]
[1727765205480,0.24618591,64069.0,64068.0,0.16947381]
[1727765205995,0.24618591,64069.0,64068.0,0.01338981]
[1727765205996,0.52066783,64069.0,64068.0,0.01338981]
[1727765206251,0.79609022,64069.0,64068.0,0.01119471]
[1727765206491,0.156085,64068.0,64060.0,0.156101]
[1727765206727,0.29396781,64063.0,64062.0,0.156098]
[1727765206966,0.63992991,64063.0,64062.0,0.156098]
[1727765208402,0.63992991,64063.0,64062.0,0.15557496]
[1727765209826,0.63992991,64063.0,64062.0,0.15857496]
[1727765210061,0.63992991,64063.0,64062.0,0.16399688]
[1727765210319,0.63992991,64063.0,64062.0,0.16699688]
[1727765211210,0.64075291,64063.0,64062.0,0.16699688]
[1727765211485,0.64075291,64063.0,64062.0,0.16399688]
[1727765213095,0.64008865,64063.0,64062.0,0.16099688]
[1727765216389,0.6645594,64063.0,64062.0,0.16099688]
[1727765218344,0.54725112,64063.0,64062.0,0.16099688]
[1727765218571,0.54725112,64063.0,64062.0,0.15999688]
[1727765220370,0.54725112,64063.0,64062.0,0.16579457]
[1727765224402,0.54725112,64063.0,64062.0,0.16679457]
[1727765226361,0.66430313,64063.0,64062.0,0.16679457]
[1727765226596,0.66420161,64063.0,64062.0,0.16679457]
[1727765227305,0.54714692,64063.0,64062.0,0.16679457]
[1727765228230,0.66420773,64063.0,64062.0,0.16679457]
[1727765228450,0.54714692,64063.0,64062.0,0.16679457]
[1727765230684,0.46664692,64063.0,64062.0,0.16679457]
[1727765230906,0.58371456,64063.0,64062.0,0.16679457]
[1727765234091,0.46664692,64063.0,64062.0,0.16679457]
[1727765234755,0.46664692,64063.0,64062.0,0.16579457]
[1727765235811,0.46664692,64063.0,64062.0,0.16744257]
[1727765238068,0.44664692,64063.0,64062.0,0.16744257]
[1727765238714,0.53924381,64063.0,64062.0,0.16744257]
[1727765239407,0.42217617,64063.0,64062.0,0.16744257]
[1727765239826,0.53927433,64063.0,64062.0,0.16744257]
[1727765241181,0.53943234,64063.0,64062.0,0.16744257]
[1727765241426,0.42232785,64063.0,64062.0,0.16744257]
[1727765242131,0.44679866,64063.0,64062.0,0.16744257]
[1727765242414,0.42232785,64063.0,64062.0,0.16744257]
[1727765244445,0.56285324,64063.0,64062.0,0.01286761]
[1727765244677,0.42232785,64063.0,64062.0,0.01286761]
[1727765244911,0.42232785,64063.0,64062.0,0.001648]
[1727765245123,0.44679933,64063.0,64062.0,0.001648]
[1727765246069,0.58741282,64063.0,64062.0,0.001648]
[1727765246301,0.44683157,64063.0,64062.0,0.001648]
[1727765246991,0.44683157,64063.0,64062.0,0.01287778]
[1727765247226,0.58741282,64063.0,64062.0,0.01287778]
[1727765247442,0.44683157,64063.0,64062.0,0.001648]
[1727765248600,0.37043157,64063.0,64062.0,0.157746]
[1727765249049,0.37043157,64063.0,64062.0,0.16897907]
[1727765249298,0.46573157,64063.0,64062.0,0.16897907]
[1727765250040,0.60631282,64063.0,64062.0,0.16897907]
[1727765250537,0.60631282,64063.0,64062.0,0.157746]
[1727765250985,0.60631282,64063.0,64062.0,0.16355231]
[1727765251441,0.46573157,64063.0,64062.0,0.16355231]
[1727765252528,0.46573157,64063.0,64062.0,0.16897423]
[1727765259673,0.46577422,64063.0,64062.0,0.16897423]
[1727765267153,0.46577422,64063.0,64062.0,0.28699835]
[1727765267154,0.21401642,64063.0,64062.0,0.28699835]
[1727765267399,0.04772607,64063.0,64062.0,0.46019835]
[1727765267638,0.000823,64063.0,64062.0,0.47603169]
[1727765269483,0.000823,64063.0,64062.0,0.48203169]
[1727765269941,0.000823,64063.0,64062.0,0.47603169]
[1727765270154,0.000823,64063.0,64062.0,0.47603486]
[1727765270393,0.000823,64063.0,64062.0,0.48903486]
[1727765270611,0.02529015,64063.0,64062.0,0.48903486]
[1727765270829,0.000823,64063.0,64062.0,0.50103486]
[1727765271516,0.000823,64063.0,64062.0,0.48519835]
[1727765271947,0.000823,64063.0,64062.0,0.50103486]
[1727765272158,0.000823,64063.0,64062.0,0.48519835]
[1727765274004,0.02528971,64063.0,64062.0,0.48519835]
[1727765276072,0.000823,64063.0,64062.0,0.48519835]
[1727765276802,0.000823,64063.0,64062.0,0.58519835]
[1727765277016,0.000823,64063.0,64062.0,0.60103486]
[1727765277237,0.0252899,64063.0,64062.0,0.60303486]
[1727765277462,0.0252899,64063.0,64062.0,0.78249266]
[1727765279327,0.000823,64063.0,64062.0,0.76949266]
[1727765279795,0.000823,64063.0,64062.0,0.76946744]
[1727765280260,0.000823,64063.0,64062.0,0.80127902]
[1727765280497,0.000823,64063.0,64062.0,0.76965615]
[1727765280729,0.000823,64063.0,64062.0,0.78546791]
[1727765280956,0.000823,64063.0,64062.0,0.77146791]
[1727765281198,0.000823,64063.0,64062.0,0.78546791]
[1727765281393,0.000823,64063.0,64062.0,0.76965615]
[1727765281657,0.000823,64063.0,64062.0,0.78546791]
[1727765282138,0.000823,64063.0,64062.0,0.76965615]
[1727765282360,0.000823,64063.0,64062.0,0.78546172]
[1727765282599,0.02528832,64063.0,64062.0,0.78346172]
[1727765282822,0.000823,64063.0,64062.0,0.76765615]
[1727765283254,0.000823,64063.0,64062.0,0.78346172]
[1727765283465,0.000823,64063.0,64062.0,0.76765615]
[1727765283919,0.000823,64063.0,64062.0,0.78346172]
[1727765284140,0.000823,64063.0,64062.0,0.76765615]
[1727765285513,0.02528838,64063.0,64062.0,0.76765615]
[1727765285698,0.000823,64063.0,64062.0,0.76765615]
[1727765286150,0.02528997,64063.0,64062.0,0.74465615]
[1727765288402,0.000823,64063.0,64062.0,0.74465615]
[1727765288830,0.000823,64063.0,64062.0,0.76046172]
[1727765289042,0.000823,64063.0,64062.0,0.74465615]
[1727765289511,0.000823,64063.0,64062.0,0.76046172]
[1727765289732,0.000823,64063.0,64062.0,0.74465615]
[1727765290160,0.000823,64063.0,64062.0,0.76046172]
[1727765290375,0.000823,64063.0,64062.0,0.76246172]
[1727765290597,0.000823,64063.0,64062.0,0.76046172]
[1727765291731,0.000823,64063.0,64062.0,0.74465615]
[1727765292194,0.000823,64063.0,64062.0,0.76047703]
[1727765294936,0.02528841,64063.0,64062.0,0.76050431]
[1727765298257,0.02528841,64063.0,64062.0,0.74465615]
[1727765298502,0.02528841,64063.0,64062.0,0.76052642]
[1727765299175,0.02528841,64063.0,64062.0,0.78483263]
[1727765299860,0.02528841,64063.0,64062.0,0.66680851]
[1727765300067,0.02528841,64063.0,64062.0,0.78483263]
[1727765301372,0.02528841,64063.0,64062.0,0.76052642]
[1727765301631,0.02528841,64063.0,64062.0,0.78483582]
[1727765304445,0.02528841,64063.0,64062.0,0.76052642]
[1727765304666,0.02528841,64063.0,64062.0,0.74465615]
[1727765305150,0.02528841,64063.0,64062.0,0.7605185]
[1727765308212,0.02528841,64063.0,64062.0,0.74465615]
[1727765308446,0.02528841,64063.0,64062.0,0.76051667]
[1727765309147,0.02528841,64063.0,64062.0,0.66351667]
[1727765309381,0.02528841,64063.0,64062.0,0.58731667]
[1727765310607,0.02528841,64063.0,64062.0,0.43085887]
[1727765311348,0.02528841,64063.0,64062.0,0.41499835]
[1727765311593,0.02528841,64063.0,64062.0,0.43085876]
[1727765315356,0.02528841,64063.0,64062.0,0.31283464]
[1727765315580,0.02528841,64063.0,64062.0,0.43085876]
[1727765316284,0.02528841,64063.0,64062.0,0.41499835]
[1727765316744,0.02528841,64063.0,64062.0,0.43084499]
[1727765318192,0.02528841,64063.0,64062.0,0.41499835]
[1727765318434,0.02528841,64063.0,64062.0,0.43084389]
[1727765327754,0.02528841,64063.0,64062.0,0.46391499]
[1727765327986,0.02528841,64063.0,64062.0,0.47975969]
[1727765334813,0.000823,64063.0,64062.0,0.50983083]
[1727765335063,0.000823,64063.0,64062.0,0.55995969]
[1727765335310,0.000823,64063.0,64062.0,0.47975969]
[1727765335572,0.000823,64063.0,64062.0,0.50983083]
[1727765335794,0.000623,64063.0,64062.0,0.47975969]
[1727765336041,0.23760093,64069.0,64062.0,0.47975969]
[1727765336042,0.23752393,64069.0,64062.0,0.32366169]
[1727765336282,0.23742393,64069.0,64068.0,0.27410812]
[1727765336522,0.23742393,64069.0,64068.0,0.33886946]
[1727765336759,0.23742393,64069.0,64068.0,0.34490715]
[1727765336760,0.000446,64069.0,64068.0,0.34490715]
[1727765336995,0.090046,64071.0,64070.0,0.156079]
[1727765337470,0.089846,64071.0,64070.0,0.19222711]
[1727765337699,0.11431169,64071.0,64070.0,0.19222711]
[1727765337923,0.11351169,64071.0,64070.0,0.19222711]
[1727765338415,0.16017713,64071.0,64070.0,0.19222711]
[1727765338638,0.11271169,64071.0,64070.0,0.19222711]
[1727765338867,0.11251169,64071.0,64070.0,0.19222711]
[1727765339105,0.088046,64071.0,64070.0,0.19222711]
[1727765339344,0.087846,64071.0,64070.0,0.19222711]
[1727765339535,0.087346,64071.0,64070.0,0.19222711]
[1727765339827,0.087146,64071.0,64070.0,0.19222711]
[1727765340087,0.13401876,64071.0,64070.0,0.19222711]
[1727765340315,0.13391876,64071.0,64070.0,0.21614717]
[1727765340760,0.087046,64071.0,64070.0,0.21614717]
[1727765341242,0.04687133,64074.0,64073.0,0.156071]
[1727765341467,0.04686987,64075.0,64073.0,0.03036468]
[1727765341710,0.04686987,64075.0,64074.0,0.18643368]
[1727765341967,0.17004267,64075.0,64074.0,0.156069]
[1727765342207,0.0763,64075.0,64074.0,0.16183147]
[1727765342443,0.36011145,64075.0,64074.0,0.16183147]
[1727765342678,0.0763,64075.0,64074.0,0.16183147]
[1727765342913,0.17004574,64075.0,64074.0,0.16183147]
[1727765343381,0.26944574,64075.0,64074.0,0.16183147]
[1727765343636,0.45951497,64075.0,64074.0,0.16183147]
[1727765345286,0.45951497,64075.0,64074.0,0.16583147]
[1727765345762,0.1757,64075.0,64074.0,0.16583147]
[1727765346241,0.36583376,64075.0,64074.0,0.16983147]
[1727765346475,0.4595795,64075.0,64074.0,0.16983147]
[1727765347406,0.36583376,64075.0,64074.0,0.16983147]
[1727765347625,0.4595795,64075.0,64074.0,0.16983147]
[1727765348326,0.36583376,64075.0,64074.0,0.16983147]
[1727765348557,0.1757,64075.0,64074.0,0.16983147]
[1727765348815,0.36587467,64075.0,64074.0,0.28785559]
[1727765349041,0.36584723,64075.0,64074.0,0.28785559]
[1727765349502,0.36591489,64075.0,64074.0,0.28785559]
[1727765349759,0.1697179,64075.0,64074.0,0.28785559]
[1727765350244,0.0994,64075.0,64074.0,0.28785559]
[1727765350487,0.09374574,64076.0,64075.0,0.156067]
[1727765350488,0.07031977,64076.0,64075.0,0.156067]
[1727765350726,0.09374574,64077.0,64076.0,0.156064]
[1727765351206,0.09374574,64078.0,64077.0,0.156062]
[1727765351443,0.2840165,64078.0,64077.0,0.27408612]
[1727765351688,0.2840165,64078.0,64077.0,0.27983013]
[1727765352421,0.19027076,64078.0,64077.0,0.27983013]
[1727765352900,0.19027076,64078.0,64077.0,0.28483013]
[1727765353617,0.19027076,64078.0,64077.0,0.28983013]
[1727765354082,0.19027076,64078.0,64077.0,0.28483013]
[1727765354305,0.07113308,64079.0,64077.0,0.12876813]
[1727765354556,0.07113308,64079.0,64078.0,0.156059]
[1727765354799,0.04769566,64079.0,64078.0,0.156059]
[1727765355041,0.174324,64079.0,64078.0,0.16178862]
[1727765355279,0.22118972,64079.0,64078.0,0.16178862]
[1727765355517,0.13988972,64079.0,64078.0,0.16178862]
[1727765357933,0.13988972,64079.0,64078.0,0.16578862]
[1727765358385,0.093024,64079.0,64078.0,0.16878862]
[1727765358834,0.093024,64079.0,64078.0,0.16578862]
[1727765359313,0.093024,64079.0,64078.0,0.16978862]
[1727765364818,0.000824,64079.0,64078.0,0.16978862]
[1727765366184,0.14367312,64079.0,64078.0,0.16978862]
[1727765366433,0.172124,64079.0,64078.0,0.16978862]
[1727765366672,0.24239769,64079.0,64078.0,0.16978862]
[1727765366903,0.172124,64079.0,64078.0,0.16978862]
[1727765367602,0.21896697,64079.0,64078.0,0.28781274]
[1727765370352,0.096824,64079.0,64078.0,0.28781274]
[1727765375807,0.000824,64079.0,64078.0,0.28781274]
[1727765376273,1e-06,64079.0,64078.0,0.56173366]
[1727765376497,1e-06,64079.0,64078.0,0.76570914]
[1727765376733,1e-06,64079.0,64078.0,0.78167433]
[1727765376964,1e-06,64079.0,64078.0,0.8386131]
[1727765377191,1e-06,64079.0,64078.0,0.81862447]
[1727765377415,1e-06,64079.0,64078.0,0.75836772]
[1727765377637,1e-06,64079.0,64078.0,0.83045799]
[1727765377895,1e-06,64079.0,64078.0,0.77355115]
[1727765378118,1e-06,64079.0,64078.0,0.77755115]
[1727765378599,1e-06,64079.0,64078.0,0.77355115]
[1727765378825,1e-06,64079.0,64078.0,0.78755115]
[1727765379066,1e-06,64079.0,64078.0,0.79155115]
[1727765379287,1e-06,64079.0,64078.0,0.80615388]
[1727765379734,1e-06,64079.0,64078.0,0.80215388]
[1727765379959,1e-06,64079.0,64078.0,0.80216146]
[1727765380189,1e-06,64079.0,64078.0,0.80213129]
[1727765380650,1e-06,64079.0,64078.0,0.81613129]
[1727765381098,1e-06,64079.0,64078.0,0.80213129]
[1727765381558,1e-06,64079.0,64078.0,0.80413129]
[1727765381803,1e-06,64079.0,64078.0,0.79013129]
[1727765382465,1e-06,64079.0,64078.0,0.80413129]
[1727765382908,1e-06,64079.0,64078.0,0.78818428]
[1727765383820,1e-06,64079.0,64078.0,0.80411355]
[1727765384035,1e-06,64079.0,64078.0,0.79011355]
[1727765384550,1e-06,64079.0,64078.0,0.80411355]
[1727765386307,1e-06,64079.0,64078.0,0.81811355]
[1727765386531,0.050001,64079.0,64078.0,0.80411355]
[1727765386798,0.050001,64079.0,64078.0,0.43393163]
[1727765386993,0.050001,64079.0,64078.0,0.48885575]
[1727765387219,0.050001,64079.0,64078.0,0.49406279]
[1727765387437,0.050001,64079.0,64078.0,0.44494251]
[1727765387663,0.050001,64079.0,64078.0,0.45894251]
[1727765388139,0.050001,64079.0,64078.0,0.47487178]
[1727765388389,0.050001,64079.0,64078.0,0.48887178]
[1727765388829,0.050001,64079.0,64078.0,0.47294251]
[1727765389054,0.050001,64079.0,64078.0,0.50806279]
[1727765389285,0.050001,64079.0,64078.0,0.45566474]
[1727765389514,0.050001,64079.0,64078.0,0.45901563]
[1727765389753,0.050001,64079.0,64078.0,0.49223568]
[1727765389958,0.050001,64079.0,64078.0,0.5081889]
[1727765390182,0.050001,64079.0,64078.0,0.49358617]
[1727765392252,0.050001,64079.0,64078.0,0.49523417]
[1727765392466,0.050001,64079.0,64078.0,0.44078074]
[1727765392691,0.050001,64079.0,64078.0,0.47925863]
[1727765393361,0.050001,64079.0,64078.0,0.49521145]
[1727765395854,0.050001,64079.0,64078.0,0.49526415]
[1727765396735,0.050001,64079.0,64078.0,0.50163166]
[1727765398922,0.040001,64079.0,64078.0,0.50163166]
[1727765401191,0.040001,64079.0,64078.0,0.48577966]
[1727765401415,0.040001,64079.0,64078.0,0.36775554]
[1727765401653,0.040001,64079.0,64078.0,0.50176169]
[1727765404127,0.040001,64079.0,64078.0,0.47044169]
[1727765404352,0.040001,64079.0,64078.0,0.41582825]
[1727765404588,0.040001,64079.0,64078.0,0.45437474]
[1727765405031,0.040001,64079.0,64078.0,0.47035206]
[1727765405486,0.040825,64079.0,64078.0,0.47035206]
[1727765406141,0.040825,64079.0,64078.0,0.35232794]
[1727765406359,0.040825,64079.0,64078.0,0.47035206]
[1727765408001,0.06528532,64079.0,64078.0,0.47035206]
[1727765408221,0.040825,64079.0,64078.0,0.47035206]
[1727765409838,0.040825,64079.0,64078.0,0.50113507]
[1727765412654,0.06528534,64079.0,64078.0,0.50113507]
[1727765414053,0.040825,64079.0,64078.0,0.5010453]
[1727765414305,0.040825,64079.0,64078.0,0.50108795]
[1727765416518,0.040825,64079.0,64078.0,0.53958332]
[1727765416741,0.009614,64079.0,64078.0,0.53958332]
[1727765416988,1e-06,64079.0,64078.0,0.53958332]
[1727765420456,1e-06,64079.0,64078.0,0.43180997]
[1727765420680,1e-06,64079.0,64078.0,0.48547515]
[1727765420900,1e-06,64079.0,64078.0,0.54015378]
[1727765421806,1e-06,64079.0,64078.0,0.57145378]
[1727765426402,1e-06,64079.0,64078.0,0.50176846]
[1727765426649,1e-06,64079.0,64078.0,0.57136409]
[1727765429732,1e-06,64079.0,64078.0,0.57135918]
[1727765430202,1e-06,64079.0,64078.0,0.45333506]
[1727765430441,1e-06,64079.0,64078.0,0.57135918]
[1727765432688,1e-06,64079.0,64078.0,0.44712825]
[1727765432689,0.02446112,64079.0,64078.0,0.44712825]
[1727765432922,0.02446112,64079.0,64078.0,0.53570977]
[1727765433187,0.02446112,64079.0,64078.0,0.57102985]
[1727765436065,0.02446112,64079.0,64078.0,0.55503082]
[1727765436282,0.02446112,64079.0,64078.0,0.57102981]
[1727765439201,1e-06,64079.0,64078.0,0.55173255]
[1727765439447,1e-06,64079.0,64078.0,0.55505334]
[1727765440139,1e-06,64079.0,64078.0,0.58704583]
[1727765442398,1e-06,64079.0,64078.0,0.58706636]
[1727765443745,1e-06,64079.0,64078.0,0.4530462]
[1727765443966,1e-06,64079.0,64078.0,0.57107032]
[1727765445512,0.02446079,64079.0,64078.0,0.55159808]
[1727765445732,0.02446079,64079.0,64078.0,0.55487506]
[1727765446202,0.02446079,64079.0,64078.0,0.57086747]
[1727765448634,0.02446079,64079.0,64078.0,0.44712825]
[1727765448852,1e-06,64079.0,64078.0,0.53567089]
[1727765449077,1e-06,64079.0,64078.0,0.60944664]
[1727765449503,1e-06,64079.0,64078.0,0.57094984]
[1727765451050,0.1237516,64084.0,64083.0,0.27407112]
[1727765451267,0.1237516,64084.0,64083.0,0.39789271]
[1727765451480,0.1237516,64084.0,64083.0,0.40374026]
[1727765452170,0.14821131,64084.0,64083.0,0.40374026]
[1727765452419,0.1237516,64084.0,64083.0,0.41774026]
[1727765452642,0.1237516,64084.0,64083.0,0.43174026]
[1727765455146,0.1237516,64084.0,64083.0,0.38167607]
[1727765455383,0.14821109,64084.0,64083.0,0.41576856]
[1727765455643,0.14821109,64084.0,64083.0,0.41378701]
[1727765456077,0.14821109,64084.0,64083.0,0.42981146]
[1727765458554,0.14821109,64084.0,64083.0,0.32193898]
[1727765458776,0.14821109,64084.0,64083.0,0.40731575]
[1727765459043,0.14821109,64084.0,64083.0,0.44587558]
[1727765459524,0.14821109,64084.0,64083.0,0.44587544]
[1727765459746,0.1237516,64084.0,64083.0,0.44587544]
[1727765459963,0.1237516,64084.0,64083.0,0.42987379]
[1727765461142,0.1237516,64084.0,64083.0,0.39447541]
[1727765461379,0.1237516,64084.0,64083.0,0.42975976]
[1727765462362,0.1245756,64084.0,64083.0,0.45539881]
[1727765462826,0.14903486,64084.0,64083.0,0.45539881]
[1727765464050,0.14903486,64084.0,64083.0,0.4559578]
[1727765464287,0.07528326,64084.0,64083.0,0.45597918]
[1727765467585,0.07528326,64084.0,64083.0,0.43644232]
[1727765467814,0.07528326,64084.0,64083.0,0.45579905]
[1727765468741,0.07528326,64084.0,64083.0,0.41422252]
[1727765468967,0.050824,64084.0,64083.0,0.45585908]
[1727765470839,0.050824,64084.0,64083.0,0.45586413]
[1727765472233,0.07528286,64084.0,64083.0,0.45586413]
[1727765474350,0.07528286,64084.0,64083.0,0.47084418]
[1727765474525,0.07528286,64084.0,64083.0,0.4868448]
[1727765475868,0.07528286,64084.0,64083.0,0.4884908]
[1727765476381,0.07528286,64084.0,64083.0,0.72526873]
[1727765476600,0.0996,64096.0,64091.0,0.43007912]
[1727765476836,0.100424,64099.0,64098.0,0.156011]
[1727765477053,0.100424,64099.0,64098.0,0.32429915]
[1727765477280,0.100424,64099.0,64098.0,0.34404598]
[1727765477509,0.100424,64099.0,64098.0,0.27778075]
[1727765477788,0.100424,64099.0,64098.0,0.32797768]
[1727765478022,0.000824,64103.0,64102.0,0.256001]
[1727765478254,0.000824,64103.0,64102.0,0.34485584]
[1727765478463,0.000824,64103.0,64102.0,0.3794616]
[1727765478697,0.000824,64103.0,64102.0,0.39545431]
[1727765478913,0.000824,64103.0,64102.0,0.36456913]
[1727765480511,0.000824,64103.0,64102.0,0.33991083]
[1727765480817,0.000824,64103.0,64102.0,0.32391812]
[1727765481736,0.000824,64103.0,64102.0,0.35388767]
[1727765482424,0.000824,64103.0,64102.0,0.33791812]
[1727765483581,0.000824,64103.0,64102.0,0.45594224]
[1727765484486,0.02527418,64103.0,64102.0,0.45594224]
[1727765487465,0.000824,64109.0,64103.0,0.0918]
[1727765487718,0.000824,64113.0,64111.0,0.37400312]
[1727765487930,0.000824,64113.0,64111.0,0.42419966]
[1727765488165,0.000824,64113.0,64111.0,0.42787313]
[1727765488664,0.000824,64113.0,64111.0,0.39698295]
[1727765488885,0.000824,64113.0,64111.0,0.42787313]
[1727765489103,0.000824,64113.0,64111.0,0.39698295]
[1727765490728,0.000824,64113.0,64111.0,0.37767659]
[1727765490970,0.000824,64113.0,64111.0,0.39685065]
[1727765491194,0.000824,64113.0,64111.0,0.41152772]
[1727765491677,0.000824,64113.0,64111.0,0.42552772]
[1727765491886,0.000824,64113.0,64111.0,0.43952772]
[1727765493296,0.000824,64113.0,64111.0,0.42485065]
[1727765494727,0.02527118,64112.0,64111.0,0.42485065]
[1727765496615,0.000824,64112.0,64111.0,0.42485065]
[1727765497309,0.000824,64112.0,64111.0,0.40567659]
[1727765497549,0.000824,64112.0,64111.0,0.42487432]
[1727765497995,0.000824,64112.0,64111.0,0.43108118]
[1727765499371,0.000824,64112.0,64111.0,0.46179754]
[1727765500363,0.000824,64112.0,64111.0,0.46175842]
[1727765505143,0.000824,64112.0,64111.0,0.3437343]
[1727765505366,0.000824,64112.0,64111.0,0.46175842]
[1727765506575,0.000824,64112.0,64111.0,0.41188345]
[1727765506798,0.000824,64112.0,64111.0,0.46176729]
[1727765507021,0.000824,64112.0,64111.0,0.51671383]
[1727765507455,0.000824,64112.0,64111.0,0.49246641]
[1727765507724,0.000824,64112.0,64111.0,0.46176866]
[1727765510025,0.000824,64112.0,64111.0,0.41188345]
[1727765510238,0.000824,64112.0,64111.0,0.46184346]
[1727765511579,0.0252709,64112.0,64111.0,0.46184346]
[1727765511800,0.0252709,64112.0,64111.0,0.53954346]
[1727765513180,0.0252709,64112.0,64111.0,0.48958345]
[1727765513414,0.0252709,64112.0,64111.0,0.53963933]
[1727765514069,0.0252709,64112.0,64111.0,0.79329713]
[1727765516296,0.0252709,64112.0,64111.0,0.69609713]
[1727765516768,0.000824,64112.0,64111.0,0.69603912]
[1727765519208,0.000324,64112.0,64111.0,0.69603912]
[1727765519710,0.000324,64112.0,64111.0,0.69595158]
[1727765521728,0.000324,64112.0,64111.0,0.75298225]
[1727765523532,0.02477083,64112.0,64111.0,0.75298225]
[1727765523749,0.02477083,64112.0,64111.0,0.79097792]
[1727765523973,0.000324,64112.0,64111.0,0.79097792]
[1727765524898,0.000324,64112.0,64111.0,0.70307192]
[1727765525113,0.000324,64112.0,64111.0,0.7913216]
[1727765526284,1e-06,64113.0,64112.0,0.402177]
[1727765526521,0.02527117,64128.0,64115.0,0.0313]
[1727765526746,0.02527117,64128.0,64122.0,0.40527612]
[1727765527013,0.02527117,64128.0,64122.0,0.48156612]
[1727765527250,0.02527117,64128.0,64122.0,0.51238105]
[1727765527471,0.02527117,64128.0,64122.0,0.45535038]
[1727765528377,0.02527117,64128.0,64122.0,0.4690591]
[1727765528890,0.02527117,64128.0,64122.0,0.4710591]
[1727765529143,0.02527117,64128.0,64122.0,0.4690591]
[1727765529377,0.02527117,64128.0,64122.0,0.49333774]
[1727765530259,0.050824,64123.0,64122.0,0.5276562]
[1727765531385,0.050824,64123.0,64122.0,0.45359458]
[1727765531618,0.050824,64123.0,64122.0,0.52748835]
[1727765532312,0.050824,64123.0,64122.0,0.50321953]
[1727765533471,0.050824,64123.0,64122.0,0.50323778]
[1727765535078,0.050824,64123.0,64122.0,0.58023082]
[1727765535297,0.050824,64123.0,64122.0,0.50663901]
[1727765535989,0.050824,64123.0,64122.0,0.38861489]
[1727765536233,0.050824,64123.0,64122.0,0.50663901]
[1727765536234,0.144224,64123.0,64122.0,0.50663901]
[1727765537588,0.144224,64123.0,64122.0,0.49263901]
[1727765537806,0.144224,64123.0,64122.0,0.50663901]
[1727765539416,0.144224,64123.0,64122.0,0.49263901]
[1727765539886,0.050824,64123.0,64122.0,0.49263901]
[1727765540134,0.050824,64123.0,64122.0,0.50663901]
[1727765541085,0.050824,64123.0,64122.0,0.50674822]
[1727765542286,0.050824,64123.0,64122.0,0.53221115]
[1727765543392,0.050824,64123.0,64122.0,0.54812255]
[1727765543611,0.050824,64123.0,64122.0,0.70458035]
[1727765544280,0.050824,64123.0,64122.0,0.70458328]
[1727765544508,0.050824,64123.0,64122.0,0.6549349]
[1727765544915,0.000824,64128.0,64127.0,0.15594]
[1727765544919,0.000824,64128.0,64127.0,0.25594]
[1727765545123,0.000824,64128.0,64127.0,0.43952463]
[1727765545339,0.000824,64128.0,64127.0,0.44912583]
[1727765547009,0.000824,64128.0,64127.0,0.47458876]
[1727765547207,0.000824,64128.0,64127.0,0.39947672]
[1727765547417,0.000824,64128.0,64127.0,0.41405054]
[1727765547594,0.000824,64128.0,64127.0,0.4561038]
[1727765547815,0.000824,64128.0,64127.0,0.49742976]
[1727765548225,0.000824,64128.0,64127.0,0.73528756]
[1727765550166,0.09774678,64142.0,64135.0,0.155921]
[1727765550416,0.09774678,64142.0,64135.0,0.3329606]
[1727765550854,0.09774678,64142.0,64135.0,0.34885179]
[1727765551458,0.09774678,64142.0,64135.0,0.35185179]
[1727765551945,0.09774678,64142.0,64135.0,0.35785179]
[1727765552406,0.09774678,64142.0,64135.0,0.36685179]
[1727765554020,0.09774678,64142.0,64135.0,0.34195326]
[1727765554252,0.02443978,64139.0,64135.0,0.34195326]
[1727765554473,0.02443978,64139.0,64135.0,0.36684363]
[1727765556769,0.02443978,64139.0,64135.0,0.35095326]
[1727765557014,0.02443978,64139.0,64135.0,0.49206172]
[1727765557248,0.02443978,64139.0,64135.0,0.34781792]
[1727765557471,0.02443978,64139.0,64135.0,0.34781651]
[1727765557692,0.02443978,64139.0,64135.0,0.36685163]
[1727765557963,0.09294678,64142.0,64135.0,0.36685163]
[1727765558218,0.09294678,64142.0,64135.0,0.35785163]
[1727765558668,0.09294678,64142.0,64135.0,0.36285163]
[1727765559105,0.09294678,64142.0,64135.0,0.37185163]
[1727765560021,0.09294678,64142.0,64135.0,0.32236031]
[1727765560243,0.09294678,64142.0,64135.0,0.37187491]
[1727765561388,0.09294678,64142.0,64135.0,0.36287491]
[1727765562293,0.09294678,64142.0,64135.0,0.37687491]
[1727765563199,0.09294678,64142.0,64135.0,0.31146559]
[1727765563451,0.09294678,64142.0,64135.0,0.37686252]
[1727765563674,0.09294678,64142.0,64135.0,0.39275882]
[1727765564397,0.09294678,64142.0,64135.0,0.37686252]
[1727765564612,0.02444098,64138.0,64135.0,0.37686252]
[1727765566407,0.176424,64136.0,64135.0,0.2588384]
[1727765566639,0.176424,64136.0,64135.0,0.21248017]
[1727765567130,0.176424,64136.0,64135.0,0.19344147]
[1727765567352,0.176424,64136.0,64135.0,0.21246066]
[1727765567809,0.176424,64136.0,64135.0,0.31648478]
[1727765568255,0.176424,64136.0,64135.0,0.31248478]
[1727765568687,0.176424,64136.0,64135.0,0.32148478]
[1727765569117,0.176424,64136.0,64135.0,0.31148478]